fUST/lending_fUST_20250827
["ID","MTS","AMOUNT","RATE_DAILY","PERIOD"]
[381627072,1756299084337,-480.0,0.00022739,2]
[381627073,1756299084348,-480.0,0.00022739,2]
[381627074,1756299084358,-1847.92,0.00022739,2]
[381627075,1756299084367,-837.39,0.00022739,2]
[381627076,1756299084376,-624.44,0.00022739,2]
[381627077,1756299084385,-8247.96,0.00022739,2]
[381627078,1756299084395,-480.0,0.00022739,2]
[381627079,1756299084405,-771.49,0.00022739,2]
[381627080,1756299084415,-1529.63,0.00022739,2]
[381627081,1756299084424,-583.48,0.00022739,2]
[381627082,1756299084434,-3400.62,0.00022739,2]
[381627083,1756299084443,-480.0,0.00022739,2]
[381627084,1756299084452,-480.0,0.00022739,2]
[381627085,1756299084461,-480.0,0.00022739,2]
[381627086,1756299084471,-480.0,0.00022739,2]
[381627087,1756299084480,-480.0,0.00022739,2]
[381627088,1756299084490,-480.0,0.00022739,2]
[381627089,1756299084499,-1076.84,0.00022739,2]
[381627090,1756299084510,-480.0,0.00022739,2]
[381627091,1756299084519,-1635.61,0.00022739,2]
[381627092,1756299084529,-480.0,0.00022739,2]
[381627093,1756299084538,-480.0,0.00022739,2]
[381627094,1756299084548,-480.0,0.00022739,2]
[381627095,1756299084558,-564.33,0.00022739,2]
[381627096,1756299084567,-480.0,0.00022739,2]
[381627097,1756299084577,-740.19,0.00022739,2]
[381627098,1756299084587,-1200.96,0.00022739,2]
[381627099,1756299084596,-480.0,0.00022739,2]
[381627100,1756299084606,-1559.95,0.00022739,2]
[381627101,1756299084615,-1003.43,0.00022739,2]
[381627102,1756299084625,-480.0,0.00022739,2]
[381627103,1756299084634,-480.0,0.00022739,2]
[381627104,1756299084643,-655.25,0.00022739,2]
[381627105,1756299084653,-480.0,0.00022739,2]
[381627106,1756299084662,-1004.24,0.00022739,2]
[381627107,1756299084675,-480.0,0.00022739,2]
[381627108,1756299084684,-1160.02,0.00022739,2]
[381627109,1756299084693,-626.39,0.00022739,2]
[381627110,1756299084703,-480.0,0.00022739,2]
[381627111,1756299084712,-480.0,0.00022739,2]
[381627112,1756299084722,-480.0,0.00022739,2]
[381627113,1756299084732,-480.0,0.00022739,2]
[381627114,1756299084742,-504.38,0.00022739,2]
[381627115,1756299084751,-868.0,0.00022739,2]
[381627116,1756299084760,-748.48,0.00022739,2]
[381627117,1756299084769,-632.12,0.00022739,2]
[381627118,1756299084778,-656.18,0.00022739,2]
[381627119,1756299084788,-480.0,0.00022739,2]
[381627120,1756299084797,-480.0,0.00022739,2]
[381627121,1756299084806,-480.0,0.00022739,2]
[381627122,1756299084815,-153.0,0.00022739,2]
[381627123,1756299084824,-515.28,0.00022739,2]
[381627124,1756299084833,-639.39,0.00022739,2]
[381627125,1756299084842,-1553.38,0.00022739,2]
[381627126,1756299084852,-860.92,0.00022739,2]
[381627127,1756299084861,-707.77,0.00022739,2]
[381627128,1756299084870,-961.78,0.00022739,2]
[381627129,1756299084880,-480.0,0.00022739,2]
[381627130,1756299084889,-621.34,0.00022739,2]
[381627131,1756299084898,-480.0,0.00022739,2]
[381627132,1756299084908,-480.0,0.00022739,2]
[381627133,1756299084917,-507.0,0.00022739,2]
[381627134,1756299084926,-480.0,0.00022739,2]
[381627135,1756299084936,-480.0,0.00022739,2]
[381627136,1756299084945,-480.0,0.00022739,2]
[381627137,1756299084954,-2093.04,0.00022739,2]
[381627138,1756299084964,-480.0,0.00022739,2]
[381627139,1756299084973,-481.67,0.00022739,2]
[381627140,1756299084982,-480.0,0.00022739,2]
[381627141,1756299084992,-480.0,0.00022739,2]
[381627142,1756299085001,-861.82,0.00022739,2]
[381627143,1756299085011,-906.46,0.00022739,2]
[381627144,1756299085020,-500.0,0.00022739,2]
[381627145,1756299085029,-1944.4,0.00022739,2]
[381627146,1756299085038,-480.0,0.00022739,2]
[381627147,1756299085048,-480.0,0.00022739,2]
[381627148,1756299085057,-480.0,0.00022739,2]
[381627149,1756299085066,-480.0,0.00022739,2]
[381627150,1756299085075,-480.0,0.00022739,2]
[381627151,1756299085085,-756.21,0.00022739,2]
[381627152,1756299085094,-691.47,0.00022739,2]
[381627153,1756299085104,-5734.46,0.00022739,2]
[381627154,1756299085114,-669.41,0.00022739,2]
[381627155,1756299085124,-822.12,0.00022739,2]
[381627156,1756299085133,-664.01,0.00022739,2]
[381627157,1756299085143,-480.0,0.00022739,2]
[381627158,1756299085152,-480.0,0.00022739,2]
[381627159,1756299085161,-480.0,0.00022739,2]
[381627160,1756299085171,-480.0,0.00022739,2]
[381627161,1756299085181,-1472.58,0.00022739,2]
[381627162,1756299085191,-480.0,0.00022739,2]
[381627163,1756299085201,-480.0,0.00022739,2]
[381627164,1756299085210,-481.84083818,0.00022739,2]
[381627165,1756299085219,-480.0,0.00022739,2]
[381627166,1756299085229,-480.0,0.00022739,2]
[381627167,1756299085238,-1010.62,0.00022739,2]
[381627168,1756299085248,-480.0,0.00022739,2]
[381627169,1756299085257,-945.67,0.00022739,2]
[381627170,1756299085267,-746.58,0.00022739,2]
[381627171,1756299085277,-480.0,0.00022739,2]
[381627172,1756299085286,-480.0,0.00022739,2]
[381627173,1756299085295,-820.03,0.00022739,2]
[381627174,1756299085305,-2419.42,0.00022739,2]
[381627175,1756299085313,-2003.06,0.00022739,2]
[381627176,1756299085323,-264.33627476,0.00022739,2]
[381627177,1756299085332,-712.33,0.00022739,2]
[381627178,1756299085341,-480.0,0.00022739,2]
[381627179,1756299085350,-632.8,0.00022739,2]
[381627180,1756299085359,-480.0,0.00022739,2]
[381627181,1756299085369,-480.0,0.00022739,2]
[381627182,1756299085378,-1302.43,0.00022739,2]
[381627183,1756299085388,-480.0,0.00022739,2]
[381627184,1756299085397,-879.19,0.00022739,2]
[381627185,1756299085409,-2358.04,0.00022739,2]
[381627186,1756299085418,-626.24,0.00022739,2]
[381627187,1756299085427,-571.94,0.00022739,2]
[381627188,1756299085436,-480.0,0.00022739,2]
[381627189,1756299085446,-1028.29,0.00022739,2]
[381627190,1756299085455,-480.0,0.00022739,2]
[381627191,1756299085465,-480.0,0.00022739,2]
[381627192,1756299085474,-480.0,0.00022739,2]
[381627193,1756299085484,-480.0,0.00022739,2]
[381627194,1756299085493,-480.0,0.00022739,2]
[381627195,1756299085502,-760.04,0.00022739,2]
[381627196,1756299085511,-480.0,0.00022739,2]
[381627197,1756299085520,-534.07,0.00022739,2]
[381627198,1756299085530,-480.0,0.00022739,2]
[381627199,1756299085539,-480.0,0.00022739,2]
[381627200,1756299085549,-480.0,0.00022739,2]
[381627201,1756299085558,-480.0,0.00022739,2]
[381627202,1756299085567,-773.62,0.00022739,2]
[381627203,1756299085578,-480.0,0.00022739,2]
[381627204,1756299085588,-480.0,0.00022739,2]
[381627205,1756299085598,-480.0,0.00022739,2]
[381627206,1756299085607,-3533.68,0.00022739,2]
[381627207,1756299085617,-579.37,0.00022739,2]
[381627208,1756299085626,-1078.58,0.00022739,2]
[381627209,1756299085636,-481.34,0.00022739,2]
[381627210,1756299085646,-689.04,0.00022739,2]
[381627211,1756299085658,-480.0,0.00022739,2]
[381627212,1756299085667,-558.49,0.00022739,2]
[381627213,1756299085681,-480.0,0.00022739,2]
[381627214,1756299085690,-480.0,0.00022739,2]
[381627215,1756299085699,-480.0,0.00022739,2]
[381627216,1756299085709,-480.0,0.00022739,2]
[381627217,1756299085719,-877.94,0.00022739,2]
[381627218,1756299085728,-657.92,0.00022739,2]
[381627219,1756299085737,-480.0,0.00022739,2]
[381627220,1756299085748,-541.91,0.00022739,2]
[381627221,1756299085759,-480.0,0.00022739,2]
[381627222,1756299085768,-680.84,0.00022739,2]
[381627223,1756299085778,-1306.03,0.00022739,2]
[381627224,1756299085787,-4136.98,0.00022739,2]
[381627225,1756299085797,-480.0,0.00022739,2]
[381627226,1756299085806,-480.0,0.00022739,2]
[381627227,1756299085815,-480.0,0.00022739,2]
[381627228,1756299085824,-1546.75,0.00022739,2]
[381627229,1756299085833,-611.17,0.00022739,2]
[381627230,1756299085843,-745.97,0.00022739,2]
[381627231,1756299085852,-483.6,0.00022739,2]
[381627232,1756299085862,-432.75125563,0.00022739,2]
[381627233,1756299085871,-480.0,0.00022739,2]
[381627234,1756299085881,-2253.99,0.00022739,2]
[381627235,1756299085890,-1237.23,0.00022739,2]
[381627236,1756299085901,-4927.91,0.00022739,2]
[381627237,1756299085911,-480.0,0.00022739,2]
[381627238,1756299085920,-312.71338262,0.00022739,2]
[381627239,1756299085929,-480.0,0.00022739,2]
[381627240,1756299085938,-727.85,0.00022739,2]
[381627241,1756299085949,-711.45,0.00022739,2]
[381627242,1756299085959,-681.98,0.00022739,2]
[381627243,1756299085968,-480.0,0.00022739,2]
[381627244,1756299085977,-1837.84,0.00022739,2]
[381627245,1756299085989,-2444.85,0.00022739,2]
[381627246,1756299085999,-1897.45,0.00022739,2]
[381627247,1756299086008,-449.11489423,0.00022739,2]
[381627248,1756299086172,-2263.07,0.00022739,2]
[381627249,1756299086182,-4617.09,0.00022739,2]
[381627250,1756299086192,-480.0,0.00022739,2]
[381627251,1756299086201,-867.08,0.00022739,2]
[381627252,1756299086210,-277.56048157,0.00022739,2]
[381627253,1756299086220,-480.0,0.00022739,2]
[381627254,1756299086229,-480.0,0.00022739,2]
[381627255,1756299086239,-1079.7,0.00022739,2]
[381627256,1756299086248,-480.0,0.00022739,2]
[381627257,1756299086257,-480.0,0.00022739,2]
[381627258,1756299086267,-2907.91,0.00022739,2]
[381627259,1756299086276,-576.96,0.00022739,2]
[381627260,1756299086286,-1354.76,0.00022739,2]
[381627261,1756299086295,-2286.82,0.00022739,2]
[381627262,1756299086305,-480.0,0.00022739,2]
[381627263,1756299086315,-480.0,0.00022739,2]
[381627264,1756299086324,-1707.9,0.00022739,2]
[381627265,1756299086333,-812.92,0.00022739,2]
[381627266,1756299086343,-1062.67,0.00022739,2]
[381627267,1756299086353,-480.0,0.00022739,2]
[381627268,1756299086363,-739.93,0.00022739,2]
[381627269,1756299086372,-3535.34,0.00022739,2]
[381627270,1756299086381,-380.78345748,0.00022739,2]
[381627271,1756299086390,-461.85512257,0.00022739,2]
[381627272,1756299086400,-550.73,0.00022739,2]
[381627273,1756299086410,-484.08977263,0.00022739,2]
[381627274,1756299086419,-679.72,0.00022739,2]
[381627275,1756299086429,-461.70192275,0.00022739,2]
[381627276,1756299086438,-829.46,0.00022739,2]
[381627277,1756299086448,-695.89,0.00022739,2]
[381627278,1756299086457,-577.42,0.00022739,2]
[381627279,1756299086467,-680.83,0.00022739,2]
[381627280,1756299086476,-349.56850654,0.00022739,2]
[381627281,1756299086486,-600.93,0.00022739,2]
[381627282,1756299086495,-480.0,0.00022739,2]
[381627283,1756299086504,-1995.59,0.00022739,2]
[381627284,1756299086514,-480.0,0.00022739,2]
[381627285,1756299086523,-1631.46,0.00022739,2]
[381627286,1756299086533,-1590.45,0.00022739,2]
[381627287,1756299086543,-270.92917611,0.00022739,2]
[381627288,1756299086553,-480.0,0.00022739,2]
[381627289,1756299086563,-539.05,0.00022739,2]
[381627290,1756299086572,-480.0,0.00022739,2]
[381627291,1756299086582,-712.28,0.00022739,2]
[381627292,1756299086591,-638.72,0.00022739,2]
[381627293,1756299086600,-480.0,0.00022739,2]
[381627294,1756299086610,-480.0,0.00022739,2]
[381627295,1756299086620,-480.0,0.00022739,2]
[381627296,1756299086629,-480.0,0.00022739,2]
[381627297,1756299086638,-151.92688484,0.00022739,2]
[381627298,1756299086648,-480.0,0.00022739,2]
[381627299,1756299086658,-755.02,0.00022739,2]
[381627300,1756299086667,-480.0,0.00022739,2]
[381627301,1756299086679,-480.0,0.00022739,2]
[381627302,1756299086689,-789.18,0.00022739,2]
[381627303,1756299086698,-480.0,0.00022739,2]
[381627304,1756299086707,-685.55,0.00022739,2]
[381627305,1756299086716,-480.0,0.00022739,2]
[381627306,1756299086726,-2224.28,0.00022739,2]
[381627307,1756299086736,-480.0,0.00022739,2]
[381627308,1756299086746,-480.0,0.00022739,2]
[381627309,1756299086755,-480.0,0.00022739,2]
[381627310,1756299086765,-622.18,0.00022739,2]
[381627311,1756299086775,-1015.89,0.00022739,2]
[381627312,1756299086784,-480.0,0.00022739,2]
[381627313,1756299086794,-480.0,0.00022739,2]
[381627314,1756299086803,-631.08,0.00022739,2]
[381627315,1756299086812,-1801.64,0.00022739,2]
[381627316,1756299086821,-480.0,0.00022739,2]
[381627317,1756299086831,-480.0,0.00022739,2]
[381627318,1756299086841,-678.47,0.00022739,2]
[381627319,1756299086850,-268.61771577,0.00022739,2]
[381627320,1756299086859,-480.0,0.00022739,2]
[381627321,1756299086869,-908.23,0.00022739,2]
[381627322,1756299086879,-480.0,0.00022739,2]
[381627323,1756299086889,-480.0,0.00022739,2]
[381627324,1756299086898,-698.69,0.00022739,2]
[381627325,1756299086909,-2888.9,0.00022739,2]
[381627326,1756299086918,-480.0,0.00022739,2]
[381627327,1756299086928,-480.0,0.00022739,2]
[381627328,1756299086938,-901.06,0.00022739,2]
[381627329,1756299086947,-480.0,0.00022739,2]
[381627330,1756299086957,-480.0,0.00022739,2]
[381627331,1756299086966,-480.0,0.00022739,2]
[381627332,1756299086975,-1290.3,0.00022739,2]
[381627333,1756299086984,-1110.35,0.00022739,2]
[381627334,1756299086993,-911.51,0.00022739,2]
[381627335,1756299087003,-711.28,0.00022739,2]
[381627336,1756299087012,-480.0,0.00022739,2]
[381627337,1756299087021,-480.0,0.00022739,2]
[381627338,1756299087031,-492.57,0.00022739,2]
[381627339,1756299087040,-1247.14,0.00022739,2]
[381627340,1756299087050,-480.0,0.00022739,2]
[381627341,1756299087059,-160.0,0.00022761,2]
[381627342,1756299087069,-425.44119842,0.00022761,2]
[381627343,1756299087078,-160.0,0.00022761,2]
[381627344,1756299087087,-232.59867797,0.00022761,2]
[381627345,1756299087096,-160.0,0.00022761,2]
[381627346,1756299087105,-217.23771399,0.00022761,2]
[381627347,1756299087114,-529.56067766,0.00022761,2]
[381627348,1756299087124,-845.298898,0.00022761,2]
[381627349,1756299087133,-160.0,0.00022761,2]
[381627350,1756299087143,-216.14835892,0.00022761,2]
[381627351,1756299087154,-160.0,0.00022761,2]
[381627352,1756299087164,-417.15472785,0.00022761,2]
[381627353,1756299087174,-160.0,0.00022761,2]
[381627354,1756299087183,-160.0,0.00022761,2]
[381627355,1756299087193,-160.0,0.00022761,2]
[381627356,1756299087202,-10843.3174747,0.00022867,2]
[381627357,1756299087212,-260.0,0.00022892,2]
[381627358,1756299087222,-500.0,0.00022958,2]
[381627359,1756299087231,-1500.0,0.00022968,2]
[381627360,1756299087241,-456.84374954,0.00022968,2]
[381627361,1756299087250,-781.66256,0.00022968,2]
[381627362,1756299087260,-1500.0,0.00022968,2]
[381627363,1756299087269,-1486.70754333,0.00022968,2]
[381627364,1756299087278,-1086.16377958,0.00022968,2]
[381627365,1756299087287,-502.46213118,0.00022968,2]
[381627366,1756299087296,-1510.03703661,0.00022968,2]
[381627367,1756299087305,-1500.0,0.00022968,2]
[381627368,1756299087314,-504.4385692,0.00022968,2]
[381627369,1756299087324,-1330.63040537,0.00022968,2]
[381627370,1756299087334,-1500.0,0.00022968,2]
[381627371,1756299087343,-662.14865375,0.00022968,2]
[381627372,1756299087353,-1500.0,0.00022968,2]
[381627373,1756299087362,-1502.35240638,0.00022968,2]
[381627374,1756299087372,-1500.0,0.00022968,2]
[381627375,1756299087382,-501.17237062,0.00022968,2]
[381627376,1756299087392,-1500.0,0.00022968,2]
[381627377,1756299087403,-1500.0,0.00022968,2]
[381627378,1756299087412,-1500.0,0.00022968,2]
[381627379,1756299087422,-1500.0,0.00022968,2]
[381627380,1756299087432,-1500.0,0.00022968,2]
[381627381,1756299087441,-1214.4432057,0.00022968,2]
[381627382,1756299087451,-1000.0,0.00022968,2]
[381627383,1756299087461,-1500.0,0.00022968,2]
[381627384,1756299087471,-1500.0,0.00022968,2]
[381627385,1756299087481,-1500.0,0.00022968,2]
[381627386,1756299087490,-1508.61049488,0.00022968,2]
[381627387,1756299087500,-1500.0,0.00022968,2]
[381627388,1756299087511,-1500.0,0.00022968,2]
[381627389,1756299087521,-1500.0,0.00022968,2]
[381627390,1756299087531,-1500.0,0.00022968,2]
[381627391,1756299087542,-1500.0,0.00022968,2]
[381627392,1756299087551,-1500.0,0.00022968,2]
[381627393,1756299087561,-1500.0,0.00022968,2]
[381627394,1756299087570,-1500.0,0.00022968,2]
[381627395,1756299087580,-1500.0,0.00022968,2]
[381627396,1756299087589,-1500.0,0.00022968,2]
[381627397,1756299087599,-1361.49580924,0.00022968,2]
[381627398,1756299087609,-1513.71565791,0.00022968,2]
[381627399,1756299087618,-1500.0,0.00022968,2]
[381627400,1756299087628,-504.03666907,0.00022968,2]
[381627401,1756299087637,-212.55999886,0.00022992,2]
[381627402,1756299087648,-151.0,0.00022992,2]
[381627403,1756299087658,-151.0,0.00022992,2]
[381627404,1756299087668,-503.6153923,0.00022992,2]
[381627405,1756299087681,-195.18637789,0.00022992,2]
[381627406,1756299087690,-183.9151083,0.00022992,2]
[381627407,1756299087699,-151.94225115,0.00022992,2]
[381627408,1756299087709,-160.0,0.00023,2]
[381627409,1756299087719,-160.0,0.00023,3]
[381627410,1756299087729,-845.298898,0.00023,3]
[381627411,1756299087738,-160.0,0.00023,3]
[381627412,1756299087748,-160.0,0.00023,3]
[381627413,1756299087758,-160.0,0.00023,3]
[381627414,1756299087770,-500.0,0.0002301,2]
[381627415,1756299087779,-152.81583965,0.0002301,2]
[381627416,1756299087788,-151.0,0.0002301,2]
[381627417,1756299087797,-500.0,0.0002301,2]
[381627418,1756299087807,-500.0,0.0002301,2]
[381627419,1756299087816,-1015.0,0.0002301,2]
[381627420,1756299087826,-199.32256392,0.0002301,2]
[381627421,1756299087835,-480.0,0.00023013,2]
[381627422,1756299087844,-480.0,0.00023013,2]
[381627423,1756299087853,-480.0,0.00023013,2]
[381627424,1756299087863,-480.0,0.00023013,2]
[381627425,1756299087872,-480.0,0.00023013,2]
[381627426,1756299087881,-480.0,0.00023013,2]
[381627427,1756299087891,-480.0,0.00023013,2]
[381627428,1756299087900,-480.0,0.00023013,2]
[381627429,1756299087910,-493.86,0.00023013,2]
[381627430,1756299087919,-480.0,0.00023013,2]
[381627431,1756299087929,-480.0,0.00023013,2]
[381627432,1756299087938,-480.0,0.00023013,2]
[381627433,1756299087947,-480.0,0.00023013,2]
[381627434,1756299087956,-480.0,0.00023013,2]
[381627435,1756299087965,-562.7,0.00023013,2]
[381627436,1756299087975,-524.95,0.00023013,2]
[381627437,1756299087984,-480.0,0.00023013,2]
[381627438,1756299087993,-538.52,0.00023013,2]
[381627439,1756299088003,-550.62,0.00023013,2]
[381627440,1756299088013,-480.0,0.00023013,2]
[381627441,1756299088022,-480.0,0.00023013,2]
[381627442,1756299088032,-480.0,0.00023013,2]
[381627443,1756299088041,-576.16,0.00023013,2]
[381627444,1756299088051,-662.66,0.00023013,2]
[381627445,1756299088061,-375.18627858,0.00023013,2]
[381627446,1756299088070,-480.0,0.00023013,2]
[381627447,1756299088079,-582.51,0.00023013,2]
[381627448,1756299088088,-480.0,0.00023013,2]
[381627449,1756299088098,-500.0,0.00023013,2]
[381627450,1756299088107,-480.0,0.00023013,2]
[381627451,1756299088117,-480.0,0.00023013,2]
[381627452,1756299088126,-480.0,0.00023013,2]
[381627453,1756299088135,-480.0,0.00023013,2]
[381627454,1756299088144,-523.83,0.00023013,2]
[381627455,1756299088153,-151.0,0.00023013,7]
[381627456,1756299088163,-151.0,0.00023013,7]
[381627457,1756299088172,-480.0,0.00023013,2]
[381627458,1756299088182,-480.0,0.00023013,2]
[381627459,1756299088191,-480.0,0.00023013,2]
[381627460,1756299088200,-151.0,0.00023013,7]
[381627461,1756299088210,-480.0,0.00023013,2]
[381627462,1756299088219,-472.72840949,0.00023013,2]
[381627463,1756299088228,-480.0,0.00023013,2]
[381627464,1756299088238,-480.0,0.00023013,2]
[381627465,1756299088253,-480.0,0.00023013,2]
[381627466,1756299088262,-480.0,0.00023013,2]
[381627467,1756299088271,-151.0,0.00023013,7]
[381627468,1756299088281,-606.2,0.00023013,2]
[381627469,1756299088290,-706.9,0.00023013,2]
[381627470,1756299088299,-480.0,0.00023013,2]
[381627471,1756299088309,-882.63,0.00023013,2]
[381627472,1756299088318,-480.0,0.00023013,2]
[381627473,1756299088327,-480.0,0.00023013,2]
[381627474,1756299088337,-480.0,0.00023013,2]
[381627475,1756299088347,-480.0,0.00023013,2]
[381627476,1756299088356,-714.33,0.00023013,2]
[381627477,1756299088366,-612.47,0.00023013,2]
[381627478,1756299088376,-480.0,0.00023013,2]
[381627479,1756299088385,-480.0,0.00023013,2]
[381627480,1756299088395,-480.0,0.00023013,2]
[381627481,1756299088404,-480.0,0.00023013,2]
[381627482,1756299088413,-480.0,0.00023013,2]
[381627483,1756299088423,-480.0,0.00023013,2]
[381627484,1756299088432,-480.0,0.00023013,2]
[381627485,1756299088442,-512.19,0.00023013,2]
[381627486,1756299088452,-480.0,0.00023013,2]
[381627487,1756299088461,-482.27953886,0.00023013,2]
[381627488,1756299088470,-480.0,0.00023013,2]
[381627490,1756299088480,-509.06,0.00023013,2]
[381627491,1756299088489,-612.82,0.00023013,2]
[381627492,1756299088499,-627.14,0.00023013,2]
[381627494,1756299088509,-480.0,0.00023013,2]
[381627495,1756299088518,-481.22,0.00023013,2]
[381627496,1756299088527,-624.19,0.00023013,2]
[381627498,1756299088537,-480.0,0.00023013,2]
[381627499,1756299088546,-480.0,0.00023013,2]
[381627500,1756299088556,-480.0,0.00023013,2]
[381627502,1756299088565,-480.0,0.00023013,2]
[381627503,1756299088574,-528.91,0.00023013,2]
[381627505,1756299088584,-480.0,0.00023013,2]
[381627506,1756299088593,-480.0,0.00023013,2]
[381627507,1756299088602,-608.41,0.00023013,2]
[381627509,1756299088611,-480.0,0.00023013,2]
[381627510,1756299088621,-480.0,0.00023013,2]
[381627511,1756299088630,-480.0,0.00023013,2]
[381627513,1756299088639,-480.0,0.00023013,2]
[381627520,1756299088803,-547.44,0.00023013,2]
[381627521,1756299088813,-480.0,0.00023013,2]
[381627522,1756299088822,-480.0,0.00023013,2]
[381627524,1756299088832,-480.0,0.00023013,2]
[381627525,1756299088842,-480.0,0.00023013,2]
[381627526,1756299088851,-967.44,0.00023013,2]
[381627527,1756299088861,-522.91,0.00023013,2]
[381627528,1756299088870,-480.0,0.00023013,2]
[381627529,1756299088879,-486.45,0.00023013,2]
[381627530,1756299088888,-624.58,0.00023013,2]
[381627531,1756299088898,-480.0,0.00023013,2]
[381627532,1756299088909,-480.0,0.00023013,2]
[381627533,1756299088918,-480.0,0.00023013,2]
[381627534,1756299088927,-480.0,0.00023013,2]
[381627535,1756299088936,-480.0,0.00023013,2]
[381627536,1756299088946,-480.0,0.00023013,2]
[381627537,1756299088956,-480.0,0.00023013,2]
[381627538,1756299088965,-1513.62,0.00023013,2]
[381627539,1756299088975,-1456.95,0.00023013,2]
[381627540,1756299088984,-740.6,0.00023013,2]
[381627541,1756299088993,-480.0,0.00023013,2]
[381627542,1756299089003,-561.33,0.00023013,2]
[381627543,1756299089013,-1610.42,0.00023013,2]
[381627544,1756299089022,-480.0,0.00023013,2]
[381627545,1756299089032,-507.15,0.00023013,2]
[381627546,1756299089041,-480.0,0.00023013,2]
[381627547,1756299089050,-480.0,0.00023013,2]
[381627548,1756299089059,-628.11,0.00023013,2]
[381627549,1756299089069,-569.45,0.00023013,2]
[381627550,1756299089078,-480.0,0.00023013,2]
[381627551,1756299089088,-1196.37,0.00023013,2]
[381627552,1756299089097,-1184.81,0.00023013,2]
[381627553,1756299089106,-482.71823176,0.00023013,2]
[381627554,1756299089116,-480.0,0.00023013,2]
[381627555,1756299089125,-480.0,0.00023013,2]
[381627556,1756299089134,-595.51,0.00023013,2]
[381627557,1756299089144,-974.71,0.00023013,2]
[381627558,1756299089153,-680.85,0.00023013,2]
[381627559,1756299089166,-480.0,0.00023013,2]
[381627560,1756299089175,-480.0,0.00023013,2]
[381627561,1756299089185,-480.0,0.00023013,2]
[381627562,1756299089194,-642.37,0.00023013,2]
[381627563,1756299089204,-480.0,0.00023013,2]
[381627565,1756299089215,-480.0,0.00023013,2]
[381627566,1756299089224,-480.0,0.00023013,2]
[381627567,1756299089233,-480.0,0.00023013,2]
[381627568,1756299089243,-480.0,0.00023013,2]
[381627569,1756299089252,-620.04,0.00023013,2]
[381627570,1756299089262,-1799.04,0.00023013,2]
[381627571,1756299089271,-888.29,0.00023013,2]
[381627572,1756299089280,-511.13,0.00023013,2]
[381627573,1756299089289,-615.79,0.00023013,2]
[381627574,1756299089298,-480.0,0.00023013,2]
[381627575,1756299089308,-1249.5,0.00023013,2]
[381627576,1756299089317,-837.84,0.00023013,2]
[381627577,1756299089326,-480.0,0.00023013,2]
[381627578,1756299089335,-480.0,0.00023013,2]
[381627579,1756299089346,-488.18,0.00023013,2]
[381627580,1756299089355,-841.78,0.00023013,2]
[381627581,1756299089364,-818.54,0.00023013,2]
[381627582,1756299089375,-634.58,0.00023013,2]
[381627583,1756299089384,-480.0,0.00023013,2]
[381627584,1756299089393,-480.0,0.00023013,2]
[381627585,1756299089403,-480.0,0.00023013,2]
[381627586,1756299089414,-480.0,0.00023013,2]